{"text_format":"1","workbook":"xlsx","n_sheets":12,"sheets":["Renseignements","Ce que fait le tableau","Feuille de présence","Moyennes","Fréquentation globale","Fréquentation TA1","Fréquentation TA2","Fréquentation TA3","Pourcentage S1","Pourcentage S2","Calculs","Global"],"not_rendered":{"charts":6,"images":3,"macros":1,"external_links":0,"defined_names":2,"comments":0,"pivot_tables":0},"unopened":[{"sheet":"Pourcentage S1","index":8,"reason":"not_a_worksheet"},{"sheet":"Pourcentage S2","index":9,"reason":"not_a_worksheet"},{"sheet":"Global","index":11,"reason":"not_a_worksheet"}],"bounds":{"document_bytes":16777216,"sheet_cells":100000,"rows_first":2000,"rows_last":500,"rows_between":2000,"halvings":0,"cell_chars":16384,"cell_head_chars":4096},"cells_cut":0,"cells_raw":0,"read":"whole","date_system":"1900"}

{"sheet":"Renseignements","index":0,"n_rows":18,"n_cols":5,"rows_kept":18,"cut":false,"hidden":false,"merged":[[17,0,18,8],[19,0,19,8],[0,0,5,8],[6,0,7,8],[8,0,8,8],[10,1,10,5],[11,1,11,5]]}
["Informations"]
[]
[]
[]
[]
[]
["L'utilisation de ce tableau se veut simple et accessible à tous !\nMerci de nous faire parvenir vos remarques et améliorations éventuelles par courriel"]
[]
["admin@lanimetvous.com"]
[]
["Période :","Vacances de Toussaint"]
["Date du premier jour du séjour :","2014-10-20"]
[]
["Tranches d'âge (TA)"]
["Tranches d'âge 1 (TA1)",3,"-",5,"ans"]
["Tranches d'âge 2 (TA2)",6,"-",11,"ans"]
["Tranches d'âge 3 (TA3)",12,"-",17,"ans"]
["Les dons pour l'association sont les bienvenus"]

{"sheet":"Ce que fait le tableau","index":1,"n_rows":37,"n_cols":4,"rows_kept":37,"cut":false,"hidden":false,"merged":[[11,0,11,2],[22,3,22,7],[23,3,23,7],[26,2,26,7],[29,2,29,7],[25,0,25,2],[30,0,35,7],[36,0,36,7],[0,0,2,7],[4,2,4,7],[5,0,5,7],[8,2,8,7],[9,2,9,7],[12,2,12,7],[13,3,13,7],[14,3,14,7],[15,3,15,7],[16,3,16,7],[17,3,17,7],[18,3,18,7],[20,2,20,7],[21,3,21,7]]}
["Ce que fait ce tableau :"]
[]
[]
["Tranches d'âge :"]
[null,"·","Renseignez les tranches d'âge de votre structure"]
["Tranches d'âge de la CAF par défaut"]
[]
["Moyennes :"]
[null,"·","Moyenne du nombre d'enfant pour chaque semaine"]
[null,"·","Moyenne du nombre d'enfant pour la totalité du séjour"]
[]
["Fréquentations :"]
[null,"·","Fréquentation globale"]
[null,null,"·","En demi-journée pour chaque semaine"]
[null,null,"·","En demi-journée pour la totalité du séjour"]
[null,null,"·","En journée pour chaque semaine"]
[null,null,"·","En journée pour la totalité du séjour"]
[null,null,"·","En heure pour chaque semaine"]
[null,null,"·","En heure pour la totalité du séjour"]
[]
[null,"·","Fréquentation par tranche d'âge"]
[null,null,"·","En heure"]
[null,null,"·","En journée"]
[null,null,"·","En demi-journée"]
[]
["Pourcentages :"]
[null,"·","Fréquentation par semaine par tranche d'âge"]
[]
["Base de donnée :"]
[null,"·","Possibilité d'utilisation d'une base de donnée"]
["        Le fichier comportant les informations doit impérativement s'intituler \"bdd.xlsx\"et se trouver dans le même dossier que celui où se trouve ce fichier ! En l'absence du fichier de base de données, il ne vous sera pas possible d'ajouter d'enfant depuis une base de données. Il reste cependant possible d'utiliser le fichier.\n     Le fichier de base de donnée est livré avec le fichier de pointage. Les deux fichiers doivent se trouver dans le même dossier."]
[]
[]
[]
[]
[]
["Plus d'aide à propos de son utilisation…"]

{"sheet":"Feuille de présence","index":2,"n_rows":15,"n_cols":26,"rows_kept":15,"cut":false,"hidden":false,"merged":[[1,3,1,7],[2,3,2,7],[7,15,7,16],[7,17,7,18],[6,15,6,24],[6,5,6,14],[7,3,8,3],[7,4,8,4],[7,5,7,6],[7,7,7,8],[7,9,7,10],[6,25,8,25],[7,11,7,12],[7,13,7,14],[7,19,7,20],[7,21,7,22],[7,23,7,24],[1,0,1,2],[2,0,2,2],[7,0,8,0],[7,1,8,1],[7,2,8,2]]}
[]
["Date du premier jour du séjour :",null,null,"Période :"]
[{"$f":"Renseignements!B12","v":"2014-10-20"},null,null,{"$f":"Renseignements!B11","v":"Vacances de Toussaint"}]
[]
[]
[]
[null,null,null,null,null,"Semaine 1",null,null,null,null,null,null,null,null,null,"Semaine 2",null,null,null,null,null,null,null,null,null,"TOT"]
["NOM","Prénom","Date de naissance","Âge","Tranche d'âge",7,null,8,null,9,null,10,null,11,null,15,null,151,null,16,null,17,null,18]
[null,null,null,null,null,"m","am","m","am","m","am","m","am","m","am","m","am","m","am","m","am","m","am","m","am"]
[null,null,null,{"$f":"IF(C10<>\"\",DATEDIF(C10,$A$3,\"y\"),\"\")","v":""},{"$f":"IF(C10=\"\",\"\",IF(D10<Renseignements!$B$15,\"Autres\",IF(D10<Renseignements!$B$16,Renseignements!$B$15&\" \"&Renseignements!$C$15&\" \"&Renseignements!$D$15&\" \"&Renseignements!$E$15,IF(D10<Renseignements!$B$17,Renseignements!$B$16&\" \"&Renseignements!$C$16&\" \"&Renseignements!$D$16&\" \"&Renseignements!$E$16,IF(D10<=Renseignements!$D$17,Renseignements!$B$17&\" \"&Renseignements!$C$17&\" \"&Renseignements!$D$17&\" \"&Renseignements!$E$17,\"Autres\")))))","v":""},null,null,null,null,null,null,null,null,null,null,null,null,null,null,null,null,null,null,null,null,{"$f":"SUBTOTAL(3,F10:Y10)","v":0}]
[null,null,null,"Total",{"$f":"SUM(E12:E15)","v":0},{"$f":"SUM(F12:F15)","v":0},{"$f":"SUM(G12:G15)","v":0},0,0,0,0,0,0,0,0,0,0,0,0,0,0,0,0,0,0]
[null,null,null,{"$f":"Renseignements!$B$15&\" \"&Renseignements!$C$15&\" \"&Renseignements!$D$15&\" \"&Renseignements!$E$15","v":"3 - 5 ans"},{"$f":"COUNTIF(E$9:E$10,$D12)","v":0},{"$f":"SUMPRODUCT(($E$9:$E$10=$D12)*(F$9:F$10=\"x\"))","v":0},0,0,0,0,0,0,0,0,0,{"$f":"SUMPRODUCT(($E$9:$E$10=$D12)*(P$9:P$10=\"x\"))","v":0},0,0,0,0,0,0,0,0,0]
[null,null,null,{"$f":"Renseignements!$B$16&\" \"&Renseignements!$C$16&\" \"&Renseignements!$D$16&\" \"&Renseignements!$E$16","v":"6 - 11 ans"},{"$f":"COUNTIF(E$9:E$10,$D13)","v":0},0,0,0,0,0,0,0,0,0,0,0,0,0,0,0,0,0,0,0,0]
[null,null,null,{"$f":"Renseignements!$B$17&\" \"&Renseignements!$C$17&\" \"&Renseignements!$D$17&\" \"&Renseignements!$E$17","v":"12 - 17 ans"},{"$f":"COUNTIF(E$9:E$10,$D14)","v":0},0,0,0,0,0,0,0,0,0,0,0,0,0,0,0,0,0,0,0,0]
[null,null,null,"Autres",{"$f":"COUNTIF(E$9:E$10,$D15)","v":0},0,0,0,0,0,0,0,0,0,0,0,0,0,0,0,0,0,0,0,0]

{"sheet":"Moyennes","index":3,"n_rows":16,"n_cols":3,"rows_kept":16,"cut":false,"hidden":false,"merged":[[1,0,1,3],[2,0,2,3],[4,0,7,7],[15,1,16,1],[15,0,16,0],[14,0,14,7],[15,2,16,7],[9,0,9,7],[10,2,10,7],[11,2,11,7],[12,2,12,7]]}
[]
["Période :"]
[{"$f":"Renseignements!B11","v":"Vacances de Toussaint"}]
[]
["Les feuilles suivantes sont en lecture seule. \nAucune modification ne doit y être apportée. \nLes calculs se font automatiquements."]
[]
[]
[]
[]
["Moyennes :"]
["Semaine 1",{"$f":"AVERAGE('Feuille de présence'!F11:O11)","v":0},"enfant(s) de moyenne par demi journée pour la semaine "]
["Semaine 2",{"$f":"AVERAGE('Feuille de présence'!P11:Y11)","v":0},"enfant(s) de moyenne par demi journée pour cette semaine"]
["Globale",{"$f":"AVERAGE('Feuille de présence'!F11:Y11)","v":0},"enfant(s) de moyenne par demi journée pour les quatre semaines"]
[]
["Inscrits"]
["Globale",{"$f":"SUM('Feuille de présence'!E11)","v":0},"inscrit(s) sur cette période"]

{"sheet":"Fréquentation globale","index":4,"n_rows":18,"n_cols":3,"rows_kept":18,"cut":false,"hidden":false,"merged":[[6,2,6,7],[7,2,7,7],[1,0,1,3],[2,0,2,3],[17,2,17,7],[11,2,11,7],[12,2,12,7],[15,2,15,7],[14,0,14,7],[10,2,10,7],[16,2,16,7],[9,0,9,7],[4,0,4,7],[5,2,5,7]]}
[]
["Période :"]
[{"$f":"Renseignements!B11","v":"Vacances de Toussaint"}]
[]
["Fréquentation :\n(en demi-journée)"]
["Semaine 1",{"$f":"SUM('Feuille de présence'!F11:O11)","v":0},"demi journée de fréquentation pour cette semaine"]
["Semaine 2",{"$f":"SUM('Feuille de présence'!P11:Y11)","v":0},"demi journée de fréquentation pour cette semaine"]
["Globale",{"$f":"SUM(B6:B7)","v":0},"demi journées de fréquentation pour les quatre semaines"]
[]
["Fréquentation :\n(en jours)"]
["Semaine 1",{"$f":"B6/2","v":0},"journée(s) de fréquentation pour cette semaine"]
["Semaine 2",{"$f":"B7/2","v":0},"journée(s) de fréquentation pour cette semaine"]
["Globale",{"$f":"SUM(B11:B12)","v":0},"journée(s) de fréquentation pour les quatre semaines"]
[]
["Fréquentation :\n(en heures)"]
["Semaine 1",{"$f":"B11*8","v":0},"heure(s) de fréquentation pour cette semaine"]
["Semaine 2",{"$f":"B12*8","v":0},"heure(s) de fréquentation pour cette semaine"]
["Globale",{"$f":"SUM(B16:B17)","v":0},"heure(s) de fréquentation pour les quatre semaines"]

{"sheet":"Fréquentation TA1","index":5,"n_rows":18,"n_cols":3,"rows_kept":18,"cut":false,"hidden":false,"merged":[[7,2,7,6],[1,0,1,3],[2,0,2,3],[4,0,4,6],[5,2,5,6],[6,2,6,6],[17,2,17,6],[9,0,9,6],[10,2,10,6],[11,2,11,6],[12,2,12,6],[14,0,14,6],[15,2,15,6],[16,2,16,6]]}
[]
["Période :"]
[{"$f":"Renseignements!B11","v":"Vacances de Toussaint"}]
[]
["Fréquentation :\n(4-5 ans)"]
["Semaine 1",{"$f":"SUM('Feuille de présence'!F12:O12)*4","v":0},"heure(s) de fréquentation pour cette semaine"]
["Semaine 2",{"$f":"SUM('Feuille de présence'!P12:Y12)*4","v":0},"heure(s) de fréquentation pour cette semaine"]
["Globale",{"$f":"SUM(B6:B7)","v":0},"heure(s) de fréquentation pour les quatre semaines pour cette tranche d'âge"]
[]
["Fréquentation :\n(4-5 ans)"]
["Semaine 1",{"$f":"SUM('Feuille de présence'!F12:O12)/2","v":0},"journée(s) de fréquentation pour cette semaine"]
["Semaine 2",{"$f":"SUM('Feuille de présence'!P12:Y12)/2","v":0},"journée(s) de fréquentation pour cette semaine"]
["Globale",{"$f":"SUM(B11:B12)","v":0},"journée(s) de fréquentation pour les quatre semaines"]
[]
["Fréquentation :\n(4-5 ans)"]
["Semaine 1",{"$f":"SUM('Feuille de présence'!F12:O12)","v":0},"demi journée de fréquentation pour cette semaine"]
["Semaine 2",{"$f":"SUM('Feuille de présence'!P12:Y12)","v":0},"demi journée de fréquentation pour cette semaine"]
["Globale",{"$f":"SUM(B16:B17)","v":0},"demi journées de fréquentation pour les quatre semaines"]

{"sheet":"Fréquentation TA2","index":6,"n_rows":18,"n_cols":3,"rows_kept":18,"cut":false,"hidden":false,"merged":[[1,0,1,3],[2,0,2,3],[7,2,7,5],[4,0,4,5],[5,2,5,5],[6,2,6,5],[9,0,9,5],[10,2,10,5],[11,2,11,5],[17,2,17,5],[12,2,12,5],[14,0,14,5],[15,2,15,5],[16,2,16,5]]}
[]
["Période :"]
[{"$f":"Renseignements!B11","v":"Vacances de Toussaint"}]
[]
["Fréquentation :\n(6-11 ans)"]
["Semaine 1",{"$f":"SUM('Feuille de présence'!F13:O13)*4","v":0},"heure(s) de fréquentation pour cette semaine"]
["Semaine 2",{"$f":"SUM('Feuille de présence'!P13:Y13)*4","v":0},"heure(s) de fréquentation pour cette semaine"]
["Globale",{"$f":"SUM(B6:B7)","v":0},"heure(s) de fréquentation pour les quatre semaines pour cette tranche d'âge"]
[]
["Fréquentation :\n(6-11 ans)"]
["Semaine 1",{"$f":"SUM('Feuille de présence'!F13:O13)/2","v":0},"journée(s) de fréquentation pour cette semaine"]
["Semaine 2",{"$f":"SUM('Feuille de présence'!P13:Y13)/2","v":0},"journée(s) de fréquentation pour cette semaine"]
["Globale",{"$f":"SUM(B11:B12)","v":0},"journée(s) de fréquentation pour les quatre semaines"]
[]
["Fréquentation :\n(6-11 ans)"]
["Semaine 1",{"$f":"SUM('Feuille de présence'!F13:O13)","v":0},"demi journée de fréquentation pour cette semaine"]
["Semaine 2",{"$f":"SUM('Feuille de présence'!P13:Y13)","v":0},"demi journée de fréquentation pour cette semaine"]
["Globale",{"$f":"SUM(B16:B17)","v":0},"demi journées de fréquentation pour les quatre semaines"]

{"sheet":"Fréquentation TA3","index":7,"n_rows":18,"n_cols":3,"rows_kept":18,"cut":false,"hidden":false,"merged":[[7,2,7,6],[1,0,1,3],[2,0,2,3],[4,0,4,6],[5,2,5,6],[6,2,6,6],[17,2,17,6],[9,0,9,6],[10,2,10,6],[11,2,11,6],[12,2,12,6],[14,0,14,6],[15,2,15,6],[16,2,16,6]]}
[]
["Période :"]
[{"$f":"Renseignements!B11","v":"Vacances de Toussaint"}]
[]
["Fréquentation :\n(12-17 ans)"]
["Semaine 1",{"$f":"SUM('Feuille de présence'!F14:O14)*4","v":0},"heure(s) de fréquentation pour cette semaine"]
["Semaine 2",{"$f":"SUM('Feuille de présence'!P14:Y14)*4","v":0},"heure(s) de fréquentation pour cette semaine"]
["Globale",{"$f":"SUM(B6:B7)","v":0},"heure(s) de fréquentation pour les quatre semaines pour cette tranche d'âge"]
[]
["Fréquentation :\n(12-17 ans)"]
["Semaine 1",{"$f":"SUM('Feuille de présence'!F21:O21)/2","v":0},"journée(s) de fréquentation pour cette semaine"]
["Semaine 2",{"$f":"SUM('Feuille de présence'!P21:Y21)/2","v":0},"journée(s) de fréquentation pour cette semaine"]
["Globale",{"$f":"SUM(B11:B12)","v":0},"journée(s) de fréquentation pour les quatre semaines"]
[]
["Fréquentation :\n(12-17 ans)"]
["Semaine 1",{"$f":"SUM('Feuille de présence'!F28:O28)","v":0},"demi journée de fréquentation pour cette semaine"]
["Semaine 2",{"$f":"SUM('Feuille de présence'!P28:Y28)","v":0},"demi journée de fréquentation pour cette semaine"]
["Globale",{"$f":"SUM(B16:B17)","v":0},"demi journées de fréquentation pour les quatre semaines"]

{"sheet":"Calculs","index":10,"n_rows":9,"n_cols":4,"rows_kept":9,"cut":false,"hidden":true,"merged":[[6,1,6,2],[6,3,8,5],[7,1,7,2],[8,1,8,2],[1,3,3,5],[5,1,5,2]]}
[null,"Semaine 1","Semaine 2"]
[{"$f":"Renseignements!$B$15&\" \"&Renseignements!$C$15&\" \"&Renseignements!$D$15&\" \"&Renseignements!$E$15","v":"3 - 5 ans"},{"$f":"SUM('Feuille de présence'!F12:O12)","v":0},{"$f":"SUM('Feuille de présence'!P12:Y12)","v":0},"demi-journée(s)"]
[{"$f":"Renseignements!$B$16&\" \"&Renseignements!$C$16&\" \"&Renseignements!$D$16&\" \"&Renseignements!$E$16","v":"6 - 11 ans"},{"$f":"SUM('Feuille de présence'!F13:O13)","v":0},{"$f":"SUM('Feuille de présence'!P13:Y13)","v":0}]
[{"$f":"Renseignements!$B$17&\" \"&Renseignements!$C$17&\" \"&Renseignements!$D$17&\" \"&Renseignements!$E$17","v":"12 - 17 ans"},{"$f":"SUM('Feuille de présence'!F14:O14)","v":0},{"$f":"SUM('Feuille de présence'!P14:Y14)","v":0}]
[]
[null,"Sur les quatre semaines"]
[{"$f":"Renseignements!$B$15&\" \"&Renseignements!$C$15&\" \"&Renseignements!$D$15&\" \"&Renseignements!$E$15","v":"3 - 5 ans"},{"$f":"SUM(B2:C2)","v":0},null,"demi-journée(s)"]
[{"$f":"Renseignements!$B$16&\" \"&Renseignements!$C$16&\" \"&Renseignements!$D$16&\" \"&Renseignements!$E$16","v":"6 - 11 ans"},{"$f":"SUM(B3:C3)","v":0}]
[{"$f":"Renseignements!$B$17&\" \"&Renseignements!$C$17&\" \"&Renseignements!$D$17&\" \"&Renseignements!$E$17","v":"12 - 17 ans"},{"$f":"SUM(B4:C4)","v":0}]